Workbook

Sheet 项目概况 (hidden)
A1: 项目成本测算信息一览表
A2: 一、项目概况表
A3: 项目（子项）名称： | B3: 隆润朗景台项目-基坑边坡支护工程专业分包
A4: 建设内容：
A5: 项目类型：
A6: 估算成本
A7: 二、成本分析表
A8: 序号 | B8: 内容 | C8: 估算成本 | D8: 成本控制价 | E8: 其中（含税） | G8: 税金 | H8: 各项占比 | I8: 备 注
E9: 分项 | F9: 金额
A10: 一 | B10: 建设工程控制总价 | C10: / | D10: =SUM(D11:D13) -> 1239848.85 | E10: 合计 | F10: =SUM(F11:F13) -> 1239848.85 | G10: =SUM(G11:G13) -> 102372.84 | H10: =SUM(H11:H13) -> 100.00%
A11: 1 | B11: 分部分项工程 | C11: / | D11: =控制价分析表!J6 -> 1239848.85 | E11: 专业分包 | F11: =D11 -> 1239848.85 | G11: =F11/1.09*0.09 -> 102372.84 | H11: =F11/$F$10 -> 100.00% | I11: 税率：9%
A12: 2
A13: 3
A14: 二 | B14: 估算成本 | C14: =C10 -> /
A15: 三 | B15: 成本控制价 | C15: =D10 -> 1239848.85
A16: 四 | B16: 预计利润＝（成本控制价-估算成本） | C16: /
A17: 五 | B17: 预计利润率（%）＝（预计利润/成本控制价） | C17: /
A18: 注： | B18: /
A19: 编制人员

Sheet 控制价分析表 (hidden)
A2: 三、工程项目单价分析表
A3: 项目名称 | B3: 隆润朗景台项目-基坑边坡支护工程专业分包 | J3: 成本合价 （含税） | K3: 估算成本单价 （含税） | L3: 估算成本总价 | M3: 类型 | N3: =项目概况!B5 -> 0 | P3: 单位：（元）
A4: 序号 | B4: 子目名称 | C4: 单位 | D4: 数量 | E4: 单价 | F4: 单价组成 | I4: 成本单价 （含税） | M4: 单项利润 | N4: 单项盈亏比(利润/单项总利润) | O4: 项目单价(填写往期类似项目的控制单价) | P4: 备注（如单价差异较大,需说明具体原因）
F5: 人工费 | G5: 机械费 | H5: 材料费
A6: 一 | B6: 分部分项工程 | G6: =SUMPRODUCT($D$7:$D$24,G7:G24) -> 0.00 | H6: =SUMPRODUCT($D$7:$D$24,H7:H24) -> 0.00 | J6: =SUM(J7:J27) -> 1239848.85 | L6: =SUM(L7:L27) -> 1172534.04 | M6: =J6-L6 -> 67314.81 | N6: =M6/L6 -> 5.74%
A7: 1 | B7: 人工挖沟槽、基坑土石方 | C7: m3 | D7: 230.16 | I7: 55.12 | J7: =ROUND(D7*I7,2) -> 12686.42 | K7: 40.00 | L7: =ROUND(K7*D7,2) -> 9206.40 | M7: =J7-L7 -> 3480.02 | N7: =M7/$L$6 -> 0.30%
A8: 2 | B8: 机械整理边坡 | C8: m2 | D8: 4984.98 | I8: 2.56 | J8: =ROUND(D8*I8,2) -> 12761.55 | K8: 2.00 | L8: =ROUND(K8*D8,2) -> 9969.96 | M8: =J8-L8 -> 2791.59 | N8: 0.24%
A9: 3 | B9: 现浇钢筋网片制安（HRB400 Φ8及以内） | C9: t | D9: 5.13 | I9: 5954.12 | J9: 30544.64 | K9: 4078.04 | L9: 20920.34 | M9: 9624.30 | N9: 0.82%
A10: 4 | B10: 网喷射混凝土、水泥砂浆 100mm厚 C25 | C10: m2 | D10: 960.3 | I10: 119.38 | J10: 114640.61 | K10: 83.42 | L10: 80104.38 | M10: 34536.23 | N10: 2.95%
A11: 5 | B11: 素喷喷射混凝土、水泥砂浆 80mm厚C25 | C11: m2 | D11: 4024.68 | I11: 95.10 | J11: 382747.07 | K11: 72.70 | L11: 292581.36 | M11: 90165.71 | N11: 7.69%
A12: 6 | B12: 泄水孔 塑料 孔径φ110mm | C12: m | D12: 239 | I12: 71.78 | J12: 17155.42 | K12: 23.10 | L12: 5520.90 | M12: 11634.52 | N12: 0.99%
A13: 7 | B13: 滤水包 | C13: m3 | D13: 16 | I13: 267.98 | J13: 4287.68 | K13: 120.00 | L13: 1920.00 | M13: 2367.68 | N13: 0.20%
A14: 8 | B14: 商品砼排水沟、截水沟 C25砼 | C14: m3 | D14: 69.05 | I14: 583.54 | J14: 40293.44 | K14: 483.00 | L14: 33351.15 | M14: 6942.29 | N14: 0.59%
A15: 9 | B15: 排水沟、截水沟 模板 | C15: m2 | D15: 1380.98 | I15: 65.26 | J15: 90122.75 | K15: 55.25 | L15: 76299.15 | M15: 13823.60 | N15: 1.18%
A16: 10 | B16: 垫层-C15 商品砼 | C16: m3 | D16: 57.54 | I16: 528.74 | J16: 30423.70 | K16: 440.00 | L16: 25317.60 | M16: 5106.10 | N16: 0.44%
A17: 11 | B17: 垫层模板 | C17: m2 | D17: 230.16 | I17: 55.54 | J17: 12783.09 | K17: 34.00 | L17: 7825.44 | M17: 4957.65 | N17: 0.42%
A18: 12 | B18: 锚杆、锚索钻孔及灌浆（孔径110mm及以内） | C18: m | D18: 565.74 | I18: 112.08 | J18: 63408.14 | K18: 90.18 | L18: 51019.00 | M18: 12389.14 | N18: 1.06%
A19: 13 | B19: 非预应力锚杆、锚索 制安 | C19: t | D19: 2.18 | I19: 4913.09 | J19: 10710.54 | K19: 3520.00 | L19: 7673.60 | M19: 3036.94 | N19: 0.26%
A20: 14 | B20: 伸缩缝 缝宽30mm 沥青麻絮填充 | C20: m | D20: 300.42 | I20: 34.60 | J20: 10394.53 | K20: 5.00 | L20: 1502.10 | M20: 8892.43 | N20: =M20/$L$6 -> 0.76%
A21: 15 | B21: 安全护栏 h≥1.2m | C21: m | D21: 575.41 | I21: 302.66 | J21: 174155.39 | K21: 155.00 | L21: 89188.55 | M21: 84966.84 | N21: 7.25%
A22: 16 | B22: 坡顶及坡底硬化100mm厚硬化不小于3米 C25砼 | C22: m2 | D22: 1726.23 | I22: 53.98 | J22: 93176.72 | K22: 48.30 | L22: 83376.91 | M22: 9799.81 | N22: 0.84%
A23: 17 | B23: 坡顶及坡底硬化100mm 模板 | C23: m2 | D23: 116.28 | I23: 55.54 | J23: 6458.19 | K23: 34.00 | L23: 3953.52 | M23: 2504.67 | N23: 0.21%
A24: 18 | B24: 脚手架 | C24: m2 | D24: 4984.98 | I24: 26.70 | J24: 133098.97 | K24: 26.00 | L24: 129609.48 | M24: 3489.49 | N24: 0.30%
A25: 19 | B25: 措施费 直接工程费的2%（安全文明施工费、二次转运、降排水措施、检测、监测、专家论证） | C25: 项 | D25: 1 | K25: =E25*1.09261 -> 0.00 | L25: =SUM(L7:L24)*2%+30000 -> 48586.80
A26: 20 | B26: 管理费及利润规费 按照直接工程费及措施费的10% | C26: 项 | D26: 1 | K26: =E26*1.09261 -> 0.00 | L26: =SUM(L7:L25)*10% -> 97792.66
A27: 21 | B27: 税金 9% | C27: 项 | D27: 1 | K27: =E27*1.09261 -> 0.00 | L27: =SUM(L7:L26)*9% -> 96814.74
A28: 九 | B28: 合计 | F28: =#REF!+#REF! ->  | G28: =#REF!+#REF! ->  | H28: =#REF!+#REF! ->  | J28: =J6 -> 1239848.85 | L28: =L6 -> 1172534.04 | M28: =J28-L28 -> 67314.81 | N28: =1-L28/J28 -> 5.43%
L30: 1692206.23
L31: =L30-L28 -> 519672.1925

Sheet 成本分析清单
A1: 控制价清单表
A2: 隆润朗景台项目-基坑边坡支护工程专业分包控制价清单
A3: 序号 | B3: 工程或费用名称 | C3: 工作内容 | D3: 单位 | E3: 工程数量 | F3: 控制价（含税9%） | H3: 备注
F4: 综合单价 | G4: 综合合价
A5: 1 | B5: =控制价分析表!B7 -> 人工挖沟槽、基坑土石方 | C5: 1.土石方类别:综合考虑2.开挖方式：综合考虑3.开挖深度：综合考虑4.运输方式：综合考虑5.运输距离：场内运距综合考虑（包含多次转运）6.其他要求：满足设计、规范、施工、验收要求 | D5: =控制价分析表!C7 -> m3 | E5: =控制价分析表!D7 -> 230.16 | F5: =控制价分析表!I7 -> 55.12 | G5: =ROUND(F5*E5,2) -> 12686.42
A6: 2 | B6: =控制价分析表!B8 -> 机械整理边坡 | C6: 1.土壤类别：综合考虑2.挖土深度：综合考虑3.开挖方式：综合考虑4.场内运距：综合考虑5.其他要求：满足设计、规范、施工、验收要求 | D6: =控制价分析表!C8 -> m2 | E6: =控制价分析表!D8 -> 4984.98 | F6: =控制价分析表!I8 -> 2.56 | G6: =ROUND(F6*E6,2) -> 12761.55
A7: 3 | B7: =控制价分析表!B9 -> 现浇钢筋网片制安（HRB400 Φ8及以内） | C7: 1.钢筋制作、运输2.钢筋安装3.绑扎、焊接4.钢筋种类、规格：HRB400 Φ8及以内5.连接方式:绑扎、焊接、机械连接综合考虑进单价6.其他要求：满足设计、规范、施工、验收要求 | D7: =控制价分析表!C9 -> t | E7: =控制价分析表!D9 -> 5.13 | F7: =控制价分析表!I9 -> 5954.12 | G7: 30544.64
A8: 4 | B8: =控制价分析表!B10 -> 网喷射混凝土、水泥砂浆 100mm厚 C25 | C8: 1.混凝土(砂浆)制作、运输、喷射、养护2.边坡底部多余喷射砼的清除外运3.喷射施工平台搭设、拆除4.厚度：100mm厚5.材料种类：混凝土5.混凝土(砂浆)类别、强度等级：C25 6.有无钢筋(素喷/网喷)：有 7.其他要求：满足设计、规范、施工、验收要求 | D8: =控制价分析表!C10 -> m2 | E8: =控制价分析表!D10 -> 960.30 | F8: =控制价分析表!I10 -> 119.38 | G8: 114640.61
A9: 5 | B9: =控制价分析表!B11 -> 素喷喷射混凝土、水泥砂浆 80mm厚C25 | C9: 1.混凝土(砂浆)制作、运输、喷射、养护2.边坡底部多余喷射砼的清除外运3.喷射施工平台搭设、拆除4.厚度：80mm厚5.材料种类：混凝土5.混凝土(砂浆)类别、强度等级：C25 6.有无钢筋(素喷/网喷)：无 7.其他要求：满足设计、规范、施工、验收要求 | D9: =控制价分析表!C11 -> m2 | E9: =控制价分析表!D11 -> 4024.68 | F9: =控制价分析表!I11 -> 95.10 | G9: 382747.07
A10: 6 | B10: =控制价分析表!B12 -> 泄水孔 塑料 孔径φ110mm | C10: 1.材质：塑料2.孔径：φ110mm 3.其他要求：满足设计、规范、施工、验收要求 | D10: =控制价分析表!C12 -> m | E10: =控制价分析表!D12 -> 239.00 | F10: =控制价分析表!I12 -> 71.78 | G10: 17155.42
A11: 7 | B11: =控制价分析表!B13 -> 滤水包 | C11: 1.基层处理2.配料、铺筑、整形、场内运输3.滤水层材质、规格：材质(碎石等)综合、规格按图示要求4.其他要求：满足设计、规范、施工、验收要求 | D11: =控制价分析表!C13 -> m3 | E11: =控制价分析表!D13 -> 16.00 | F11: =控制价分析表!I13 -> 267.98 | G11: 4287.68
A12: 8 | B12: =控制价分析表!B14 -> 商品砼排水沟、截水沟 C25砼 | C12: 1.混凝土拌和、运输、浇筑2.整个沟身浇捣或砌筑3.材料：商品混凝土 C25 4.其他要求：满足设计、规范、施工、验收要求 | D12: =控制价分析表!C14 -> m3 | E12: =控制价分析表!D14 -> 69.05 | F12: =控制价分析表!I14 -> 583.54 | G12: 40293.44
A13: 9 | B13: =控制价分析表!B15 -> 排水沟、截水沟 模板 | C13: 1.模板制作、安装、拆除、整理、堆放2.模板粘接物及模内杂物清理、刷隔离剂3.模板场内外运输及维修4.构件类型：排、截水沟模板5.其他要求：满足设计、规范、施工、验收要求 | D13: =控制价分析表!C15 -> m2 | E13: =控制价分析表!D15 -> 1380.98 | F13: =控制价分析表!I15 -> 65.26 | G13: 90122.75
A14: 10 | B14: =控制价分析表!B16 -> 垫层-C15 商品砼 | C14: 1.原土打夯、清底2.混凝土制作、运输、浇筑、振捣、收光（如有）、养护3.混凝土等级：C15 4.混凝土种类：综合5.骨料配合比：综合考虑6.其他要求：满足设计、规范、施工、验收要求 | D14: =控制价分析表!C16 -> m3 | E14: =控制价分析表!D16 -> 57.54 | F14: =控制价分析表!I16 -> 528.74 | G14: 30423.70
A15: 11 | B15: =控制价分析表!B17 -> 垫层模板 | C15: 1.模板制作、安装、拆除、整理、堆放2.模板粘接物及模内杂物清理、刷隔离剂3.模板场内外运输及维修4.构件类型：排、截水沟模板5.其他要求：满足设计、规范、施工、验收要求 | D15: =控制价分析表!C17 -> m2 | E15: =控制价分析表!D17 -> 230.16 | F15: =控制价分析表!I17 -> 55.54 | G15: 12783.09
A16: 12 | B16: =控制价分析表!B18 -> 锚杆、锚索钻孔及灌浆（孔径110mm及以内） | C16: 1.钻孔定位、成孔清孔2.浆液制作、运输、压浆3.锚杆(锚索)施工平台搭设、拆除4.地层情况：综合考虑5.钻孔直径：110mm及以内6.浆液种类、强度等级：M25 6.其他要求：满足设计、规范、施工、验收要求 | D16: =控制价分析表!C18 -> m | E16: =控制价分析表!D18 -> 565.74 | F16: =控制价分析表!I18 -> 112.08 | G16: 63408.14
A17: 13 | B17: =控制价分析表!B19 -> 非预应力锚杆、锚索 制安 | C17: 1.调直、下料、组合、安装等2.调直、切断、连接、安装、张拉、封锚等3.锚杆(锚索)施工平台搭设、拆除4.锚杆(索)类型部位：满足设计要求5.杆体材料品种规格数量：HRB400 φ25 6.其他要求：满足设计、规范、施工、验收要求 | D17: =控制价分析表!C19 -> t | E17: =控制价分析表!D19 -> 2.18 | F17: =控制价分析表!I19 -> 4913.09 | G17: 10710.54
A18: 14 | B18: =控制价分析表!B20 -> 伸缩缝 缝宽30mm 沥青麻絮填充 | C18: 1.清缝、填缝、盖缝、留缝,嵌缝2.缝宽、缝深：详设计图3.填充材质：沥青麻絮4.其他要求：满足设计、规范、施工、验收要求 | D18: =控制价分析表!C20 -> m | E18: =控制价分析表!D20 -> 300.42 | F18: =控制价分析表!I20 -> 34.60 | G18: 10394.53
A19: 15 | B19: =控制价分析表!B21 -> 安全护栏 h≥1.2m | C19: 1.扶手材料种类、规格、品牌 ：栏杆高度及样式满足设计要求、满足规范要求2.栏杆的制作安装运输 | D19: =控制价分析表!C21 -> m | E19: =控制价分析表!D21 -> 575.41 | F19: =控制价分析表!I21 -> 302.66 | G19: 174155.39
A20: 16 | B20: =控制价分析表!B22 -> 坡顶及坡底硬化100mm厚硬化不小于3米 C25砼 | C20: 1.原土打夯、清底2.混凝土及模板制作、运输、浇筑、振捣、收光（如有）、养护3.混凝土等级：C25 4.混凝土种类：综合 5.骨料配合比：综合考虑6.其他要求：满足设计、规范、施工、验收要求 | D20: =控制价分析表!C22 -> m2 | E20: =控制价分析表!D22 -> 1726.23 | F20: =控制价分析表!I22 -> 53.98 | G20: 93176.72
A21: 17 | B21: =控制价分析表!B23 -> 坡顶及坡底硬化100mm 模板 | C21: 1.模板制作、安装、拆除、整理、堆放2.模板粘接物及模内杂物清理、刷隔离剂3.模板场内外运输及维修4.构件类型：排、截水沟模板5.其他要求：满足设计、规范、施工、验收要求 | D21: =控制价分析表!C23 -> m2 | E21: =控制价分析表!D23 -> 116.28 | F21: =控制价分析表!I23 -> 55.54 | G21: 6458.19
A22: 18 | B22: =控制价分析表!B24 -> 脚手架 | C22: 1.场内、场外材料搬运2.搭、拆脚手架、斜道、上料平台3.拆除脚手架后材料分类堆放1.高度：综合考虑2.搭设排数：双排 3.脚手架搭设及租赁费4.其他要求：满足设计、规范、施工、验收要求 | D22: =控制价分析表!C24 -> m2 | E22: =控制价分析表!D24 -> 4984.98 | F22: =控制价分析表!I24 -> 26.70 | G22: 133098.97
A23: 19 | B23: 合计 | G23: =SUM(G5:G22) -> 1239848.85
A24: 注： 全费用合同单价中均已包括了乙方为实施和完成本合同工程所需的全部成本（除合同约定由甲方提供或承担外），包括但不限于人工、材料、机械、加工制作、运输、上下车、搬运及多次转运、安装、调试、试验、劳务用工、辅材、小型机具、周转材料、机械设备、质检（自检）、材料检测、验收检测、边坡的监测、施工临时用水用电、工人食宿、专家论证费、成品及半成品保护、安全文明生产施工费用、环境保护费用、冬雨季及夜间施工增加费、临时设施费、临时用地的征用及复耕、保险、规费、税金、垃圾清运、管理费、合理利润，以及为本工程修复缺陷的全部费用，承包本工程应承担的一切责任、义务和风险费用。
